bitfinex-derivatives/quotes_ETHF0:USTF0_20250927
["timestamp","ask_amount","ask_price","bid_price","bid_amount"]
[1758981179443,10.89644376,4021.1,4021.0,0.00288737]
[1758981180247,10.89644376,4021.1,4021.0,0.33238737]
[1758981181049,10.89644376,4021.1,4021.0,1.12827737]
[1758981181451,10.89644376,4021.1,4021.0,0.68088737]
[1758981181747,10.89644376,4021.1,4021.0,0.55368737]
[1758981182549,10.89644376,4021.1,4021.0,1.00107737]
[1758981183252,10.89644376,4021.1,4021.0,0.55368737]
[1758981184151,10.89644376,4021.1,4021.0,1.00107737]
[1758981184651,10.89644376,4021.1,4021.0,0.55368737]
[1758981184850,0.70326376,4021.1,4021.0,1.34947737]
[1758981185048,0.74196376,4021.1,4021.0,1.34947737]
[1758981187946,0.49196376,4021.1,4021.0,1.34947737]
[1758981188145,1.78579681,4021.3,4021.2,0.3383]
[1758981188346,2.53164707,4021.3,4021.2,0.7705]
[1758981188557,2.53164707,4021.3,4021.2,1.21787]
[1758981189148,3.20490707,4021.3,4021.2,0.7705]
[1758981189351,3.42070707,4021.3,4021.2,0.7705]
[1758981190555,3.42070707,4021.3,4021.2,1.21787]
[1758981190853,3.74360707,4021.3,4021.2,0.99657]
[1758981191955,3.74360707,4021.3,4021.2,1.21787]
[1758981191956,3.42070707,4021.3,4021.2,1.21787]
[1758981193757,2.97334707,4021.3,4021.2,1.21787]
[1758981194055,2.75754707,4021.3,4021.2,1.21787]
[1758981194953,3.42070707,4021.3,4021.2,1.21787]
[1758981195660,3.17070707,4021.3,4021.2,1.21787]
[1758981195857,2.97334707,4021.3,4021.2,1.21787]
[1758981197262,3.42070707,4021.3,4021.2,1.21787]
[1758981199865,3.42070707,4021.3,4021.2,0.7705]
[1758981200365,0.74585026,4021.3,4021.2,1.21787]
[1758981201264,0.97175026,4021.3,4021.2,1.21787]
[1758981201774,1.41911026,4021.3,4021.2,0.7705]
[1758981202066,3.74360707,4021.3,4021.2,0.7705]
[1758981204667,3.42070707,4021.3,4021.2,1.21787]
[1758981204876,3.42070707,4021.3,4021.2,0.7705]
[1758981205977,3.20490707,4021.3,4021.2,0.7705]
[1758981206780,3.20490707,4021.3,4021.2,1.21787]
[1758981207278,1.41911026,4021.3,4021.2,1.21787]
[1758981210081,1.41911026,4021.3,4021.2,0.7705]
[1758981210278,1.95451026,4021.3,4021.2,0.7705]
[1758981210982,1.70451026,4021.3,4021.2,0.7705]
[1758981211281,1.63881026,4021.3,4021.2,0.7705]
[1758981213382,1.63881026,4021.3,4021.2,1.21787]
[1758981213885,1.63881026,4021.3,4021.2,0.7705]
[1758981214077,1.95451026,4021.3,4021.2,0.3383]
[1758981214381,1.95451026,4021.3,4021.2,0.5485]
[1758981220585,1.95451026,4021.3,4021.2,0.99587]
[1758981220787,1.95451026,4021.3,4021.2,0.5485]
[1758981221187,1.95451026,4021.3,4021.2,0.99587]
[1758981221584,0.89098,4021.1,4021.0,0.33638737]
[1758981221882,9.17832707,4021.1,4021.0,0.00288737]
[1758981222886,9.17832707,4021.1,4021.0,0.45027737]
[1758981224186,9.17832707,4021.1,4021.0,0.78377737]
[1758981225694,8.68247681,4021.1,4021.0,0.78377737]
[1758981225889,9.17879159,4021.1,4021.0,0.78377737]
[1758981226596,8.82592144,4021.1,4021.0,0.78377737]
[1758981230989,8.82592144,4021.1,4021.0,0.00288737]
[1758981232197,8.82592144,4021.1,4021.0,0.45027737]
[1758981235200,8.82592144,4021.1,4021.0,0.78607737]
[1758981238304,8.82592144,4021.1,4021.0,0.00288737]
[1758981240006,8.82592144,4021.1,4021.0,0.45027737]
[1758981240202,8.82592144,4021.1,4021.0,0.00288737]
[1758981241309,8.82592144,4021.1,4021.0,0.45027737]
[1758981249416,8.82592144,4021.1,4021.0,0.78227737]
[1758981251513,8.06284144,4021.1,4021.0,1.33577737]
[1758981251815,8.38134144,4021.1,4021.0,1.33577737]
[1758981253429,2.94134144,4021.1,4021.0,1.33577737]
[1758981254618,2.62284144,4021.1,4021.0,1.33577737]
[1758981255020,2.94134144,4021.1,4021.0,1.33577737]
[1758981258319,4.89134144,4021.1,4021.0,1.33577737]
[1758981260623,4.57284144,4021.1,4021.0,1.33577737]
[1758981260924,4.89134144,4021.1,4021.0,1.33577737]
[1758981262323,4.64134144,4021.1,4021.0,1.33577737]
[1758981262522,4.89134144,4021.1,4021.0,1.33577737]
[1758981263929,2.94134144,4021.1,4021.0,1.33577737]
[1758981264122,0.72021478,4021.1,4021.0,1.33577737]
[1758981264420,0.49631478,4021.1,4021.0,1.33577737]
[1758981273622,0.91621478,4021.1,4021.0,1.33577737]
[1758981273825,1.23391478,4021.1,4021.0,1.33577737]
[1758981274327,0.91621478,4021.1,4021.0,1.33577737]
[1758981283449,0.70041478,4021.1,4021.0,1.33577737]
[1758981285151,0.49631478,4021.1,4021.0,1.33577737]
[1758981291340,0.49631478,4021.1,4021.0,1.58577737]
[1758981304043,2.90183649,4022.1,4021.0,3.37081382]
[1758981304044,0.3266726,4022.1,4021.0,3.37081382]
[1758981304250,3.9494,4021.8,4021.7,1.18581]
[1758981309263,3.2078,4021.8,4021.7,1.18581]
[1758981309653,0.0031726,4022.1,4022.0,1.01438]
[1758981309853,0.0031726,4022.1,4022.0,1.59318]
[1758981310260,0.0031726,4022.1,4022.0,1.79400484]
[1758981310453,0.0031726,4022.1,4022.0,1.59318]
[1758981313161,0.7718726,4022.1,4021.5,0.1231]
[1758981313357,0.7718726,4022.1,4021.8,0.4473]
[1758981313358,1.216,4021.9,4021.8,0.4473]
[1758981314462,2.55373645,4021.9,4021.8,0.4473]
[1758981315863,3.00102645,4021.9,4021.8,0.4473]
[1758981316366,3.49607945,4021.9,4021.8,0.4473]
[1758981319867,3.04878945,4021.9,4021.8,0.4473]
[1758981320367,3.04878945,4021.9,4021.8,0.7761]
[1758981321462,3.04878945,4021.9,4021.8,0.9935]
[1758981321668,2.72538945,4021.9,4021.8,1.2103]
[1758981321961,0.714253,4021.9,4021.8,1.2103]
[1758981328971,2.49928945,4021.9,4021.8,1.2103]
[1758981332978,3.01698945,4021.9,4021.8,1.2103]
[1758981335082,4.92698945,4021.9,4021.5,0.3368]
[1758981335386,2.51753645,4021.6,4021.5,0.44734]
[1758981335568,3.01258945,4021.6,4021.5,0.78414]
[1758981335972,3.01258945,4021.6,4021.5,0.44734]
[1758981336477,3.01258945,4021.6,4021.5,1.12234]
[1758981336878,3.01258945,4021.6,4021.5,1.34804]
[1758981337277,3.45990945,4021.6,4021.5,1.34804]
[1758981341184,3.01258945,4021.6,4021.5,1.34804]
[1758981348697,2.66000442,4021.6,4021.5,1.34804]
[1758981361406,2.34860442,4021.6,4021.5,1.34804]
[1758981361702,0.495053,4021.6,4021.5,1.34804]
[1758981361905,0.2042,4021.7,4021.6,1.19112]
[1758981362207,0.70010526,4021.7,4021.6,1.19112]
[1758981363810,0.91580526,4021.7,4021.6,1.19112]
[1758981369320,0.917096,4021.7,4021.6,1.19112]
[1758981376427,2.34954742,4021.7,4021.6,1.19112]
[1758981380033,0.497196,4021.7,4021.6,1.19112]
[1758981380234,5.17e-06,4021.7,4021.6,6.19112]
[1758981380434,0.0031726,4022.1,4022.0,0.99178]
[1758981380640,0.0031726,4022.1,4022.0,1.57788]
[1758981392444,0.49725741,4022.1,4022.0,1.57788]
[1758981392846,0.49725741,4022.1,4022.0,1.32788]
[1758981393043,0.49725741,4022.1,4022.0,1.57788]
[1758981395247,1.23625741,4022.1,4022.0,1.57788]
[1758981395941,0.91265741,4022.1,4022.0,1.57788]
[1758981396139,0.49725741,4022.1,4022.0,1.57788]
[1758981404356,0.70415741,4022.1,4022.0,1.57788]
[1758981404653,0.49725741,4022.1,4022.0,1.57788]
[1758981408151,1.15142741,4022.1,4022.0,1.1306]
[1758981408552,1.35992741,4022.1,4022.0,1.1306]
[1758981409151,1.35992741,4022.1,4022.0,1.57788]
[1758981409352,0.91265741,4022.1,4022.0,1.57788]
[1758981409658,0.91265741,4022.1,4022.0,1.32788]
[1758981411960,1.35992741,4022.1,4022.0,1.32788]
[1758981413358,0.91265741,4022.1,4022.0,1.32788]
[1758981420655,0.49725741,4022.1,4022.0,1.32788]
[1758981423874,0.91095741,4022.1,4022.0,1.32788]
[1758981424072,1.22475741,4022.1,4022.0,1.32788]
[1758981424968,0.91095741,4022.1,4022.0,1.32788]
[1758981425273,0.70155741,4022.1,4022.0,1.32788]
[1758981426569,1.22475741,4022.1,4022.0,1.32788]
[1758981429882,0.91095741,4022.1,4022.0,1.32788]
[1758981435276,0.70155741,4022.1,4022.0,1.32788]
[1758981446794,0.49725741,4022.1,4022.0,1.32788]
[1758981448488,0.49725741,4022.1,4022.0,6.32788]
[1758981448990,3.2078,4022.8,4022.7,1.182]
[1758981449504,0.4713,4023.2,4023.1,0.87556]
[1758981449693,0.4713,4023.2,4023.1,1.18196]
[1758981449891,0.69675572,4023.2,4023.1,1.18196]
[1758981450189,1.01865572,4023.2,4023.1,1.18196]
[1758981452901,1.01865572,4023.2,4023.1,0.75356]
[1758981455001,1.01865572,4023.2,4023.1,0.96366]
[1758981461201,1.46580572,4023.2,4023.1,0.96366]
[1758981462408,1.46580572,4023.2,4023.1,0.5165]
[1758981462708,0.44723,4022.5,4022.4,0.44724]
[1758981462915,0.44723,4022.5,4022.3,0.75365]
[1758981462916,0.7664,4022.4,4022.3,0.75365]
[1758981463210,2.99811049,4022.4,4022.3,0.96375]
[1758981464408,2.55087049,4022.4,4022.3,1.18205]
[1758981464605,2.99811049,4022.4,4022.3,1.18205]
[1758981465910,2.99811049,4022.4,4022.3,0.7348]
[1758981466103,2.99811049,4022.4,4022.3,1.18205]
[1758981467011,2.99811049,4022.4,4022.3,0.44725]
[1758981467402,2.99811049,4022.4,4022.3,0.75365]
[1758981467599,2.99811049,4022.4,4022.3,0.96375]
[1758981468111,2.00577049,4022.4,4022.3,1.18205]
[1758981470613,1.65312989,4022.4,4022.3,1.18205]
[1758981476814,1.87452989,4022.4,4022.3,1.18205]
[1758981478305,2.32176989,4022.4,4022.3,1.18205]
[1758981478713,2.64506989,4022.4,4022.3,1.18205]
[1758981479220,2.64506989,4022.4,4022.3,0.75365]
[1758981479721,2.64506989,4022.4,4022.3,0.3064]
[1758981479910,2.64506989,4022.4,4022.1,0.3263]
[1758981480116,2.19782989,4022.4,4022.3,0.44725]
[1758981481020,2.19782989,4022.4,4022.3,0.77355]
[1758981484424,2.19782989,4022.4,4022.3,0.99705]
[1758981486422,2.44682989,4022.4,4022.3,0.99705]
[1758981487523,2.12352989,4022.4,4022.3,1.21485]
[1758981488420,2.43792989,4022.4,4022.3,1.21485]
[1758981506333,2.88516989,4022.4,4022.3,1.21485]
[1758981506531,2.88516989,4022.4,4022.3,0.44725]
[1758981506733,0.44729,4021.9,4021.8,0.75339]
[1758981506933,0.88211,4021.7,4021.6,0.3061]
[1758981507139,1.43731,4021.7,4021.6,0.44732]
[1758981507437,1.93957198,4021.7,4021.6,0.44732]
[1758981507637,1.49226198,4021.7,4021.6,0.44732]
[1758981507836,1.49226198,4021.7,4021.6,0.75342]
[1758981508429,1.93957198,4021.7,4021.6,0.75342]
[1758981508630,1.93957198,4021.7,4021.6,0.96292]
[1758981509441,1.93957198,4021.7,4021.6,0.3061]
[1758981509938,1.93957198,4021.7,4021.6,0.75342]
[1758981512439,1.93957198,4021.7,4021.6,0.3061]
[1758981512639,0.88212,4021.6,4021.5,0.44734]
[1758981512938,3.12241187,4021.6,4021.5,0.75344]
[1758981514638,3.12241187,4021.6,4021.5,0.3061]
[1758981514941,0.88215,4021.4,4021.3,0.75345]
[1758981515132,1.93961198,4021.4,4021.3,0.75345]
[1758981515336,1.93961198,4021.4,4021.3,0.3061]
[1758981516835,1.93961198,4021.4,4021.3,0.75346]
[1758981518343,1.93961198,4021.4,4021.3,0.96296]
[1758981518544,1.93961198,4021.4,4021.3,1.17126]
[1758981525050,3.37144187,4021.4,4021.3,1.17126]
[1758981528052,2.61789187,4021.4,4021.3,1.17126]
[1758981528250,2.85474187,4021.4,4021.3,1.17126]
[1758981529151,3.06524187,4021.4,4021.3,1.17126]
[1758981529350,3.37144187,4021.4,4021.3,0.7239]
[1758981529548,3.37144187,4021.4,4021.3,1.17126]
[1758981530548,3.72491622,4021.4,4021.3,1.17126]
[1758981531254,3.72491622,4021.4,4021.3,0.3061]
[1758981531649,0.88216,4021.3,4021.2,0.44736]
[1758981531955,1.69062198,4021.3,4021.2,0.75346]
[1758981533258,1.69062198,4021.3,4021.2,0.96296]
[1758981538575,0.2164,4021.1,4021.0,0.90287737]
[1758981538763,3.24088424,4021.1,4021.0,0.33018737]
[1758981539056,3.74314622,4021.1,4021.0,0.33018737]
[1758981539471,3.74314622,4021.1,4021.0,0.00288737]
[1758981539966,17.14784198,4021.1,4021.0,0.00288737]
[1758981541263,0.4356,4020.4,4020.3,0.3273]
[1758981541455,5.16572198,4020.4,4020.3,0.77477]
[1758981541857,5.16572198,4020.4,4020.3,1.00087]
[1758981542057,5.16572198,4020.4,4020.3,1.00297609]
[1758981543161,4.39466198,4020.4,4020.3,1.21287609]
[1758981543359,4.17826198,4020.4,4020.3,1.21287609]
[1758981543861,3.95906198,4020.4,4020.3,1.21287609]
[1758981544062,3.71006198,4020.4,4020.3,1.21287609]
[1758981544262,3.95906198,4020.4,4020.3,1.21287609]
[1758981548865,4.17826198,4020.4,4020.3,1.21287609]
[1758981550271,4.39586198,4020.4,4020.3,1.21287609]
[1758981552371,4.72116198,4020.4,4020.3,1.21287609]
[1758981564470,3.71006198,4020.4,4020.3,1.21287609]
[1758981566672,0.50226198,4020.4,4020.3,6.21287609]
[1758981566872,3.4568,4021.0,4020.8,0.4342]
[1758981567073,0.50441035,4020.9,4020.8,1.19931]
[1758981567480,0.72921035,4020.9,4020.8,1.19931]
[1758981571387,0.94041035,4020.9,4020.8,1.19931]
[1758981571591,1.26401035,4020.9,4020.8,1.19931]
[1758981571783,0.94041035,4020.9,4020.8,1.19931]
[1758981575583,1.26401035,4020.9,4020.8,1.19931]
[1758981576189,0.94041035,4020.9,4020.8,1.19931]
[1758981581699,1.38781035,4020.9,4020.8,1.19931]
[1758981583298,1.71141035,4020.9,4020.8,1.19931]
[1758981583709,1.38781035,4020.9,4020.8,1.19931]
[1758981585403,0.94041035,4020.9,4020.8,1.19931]
[1758981585605,0.72921035,4020.9,4020.8,1.19931]
[1758981586007,0.50441035,4020.9,4020.8,1.19931]
[1758981590108,0.50441035,4020.9,4020.8,6.19931]
[1758981590312,3.2078,4021.5,4021.4,1.19925]
[1758981590505,3.93755806,4021.5,4021.4,1.19925]
[1758981592708,5.36989852,4021.5,4021.4,1.19925]
[1758981593414,5.89199852,4021.5,4021.4,1.19925]
[1758981594013,2.68419852,4021.5,4021.4,1.19925]
[1758981600617,3.13153852,4021.5,4021.4,1.19925]
[1758981601418,3.13153852,4021.5,4021.4,0.98185]
[1758981602924,2.68419852,4021.5,4021.4,0.98185]
[1758981603619,3.13153852,4021.5,4021.4,0.98185]
[1758981603824,2.68419852,4021.5,4021.4,0.98185]
[1758981604011,2.16209852,4021.5,4021.4,1.19695]
[1758981604213,1.93729852,4021.5,4021.4,1.19695]
[1758981604817,3.2078,4021.7,4021.6,0.44732]
[1758981605122,3.71235239,4021.7,4021.6,1.20582]
[1758981606313,3.92405239,4021.7,4021.6,1.20582]
[1758981606517,4.44975239,4021.7,4021.6,0.5434]
[1758981606714,0.4265,4021.3,4021.2,0.99077]
[1758981606912,0.3109,4021.6,4021.2,0.4362]
[1758981607221,1.64404046,4021.6,4021.5,1.33854]
[1758981607520,2.14814575,4021.6,4021.5,1.33854]
[1758981608123,0.50410529,4021.6,4021.5,1.33854]
[1758981608823,0.50410529,4021.6,4021.5,1.58754]
[1758981622735,0.50410529,4021.6,4021.5,1.33854]
[1758981622936,0.50410529,4021.6,4021.5,1.58754]
[1758981623129,0.72280529,4021.6,4021.5,1.58754]
[1758981623329,0.72280529,4021.6,4021.5,1.33854]
[1758981623531,0.72280529,4021.6,4021.5,1.58754]
[1758981628231,0.50410529,4021.6,4021.5,1.58754]
[1758981629638,1.63704046,4021.9,4021.8,1.1903]
[1758981629830,2.14179713,4021.9,4021.8,1.1903]
[1758981639555,2.36349713,4021.9,4021.8,1.1903]
[1758981639853,2.68689713,4021.9,4021.8,1.1903]
[1758981646352,1.25455667,4021.9,4021.8,1.1903]
[1758981646552,2.68689713,4021.9,4021.8,1.1903]
[1758981653855,2.36349713,4021.9,4021.8,1.1903]
[1758981654656,0.93115667,4021.9,4021.8,1.1903]
[1758981664062,0.50475667,4021.9,4021.8,4.3981]
[1758981673169,0.72615667,4021.9,4021.8,4.3981]
[1758981673370,0.72615667,4021.9,4021.8,0.9654]
[1758981673371,1.26245667,4021.9,4021.8,0.9654]
[1758981673674,1.26245667,4021.9,4021.8,0.7566]
[1758981674880,1.2621797,4021.9,4021.8,0.7566]
[1758981677275,1.2621797,4021.9,4021.8,0.4473]
[1758981677483,0.9483797,4021.9,4021.8,0.4473]
[1758981677674,1.2621797,4021.9,4021.8,0.4473]
[1758981678278,1.7094697,4021.9,4021.8,0.4473]
[1758981678978,1.2621797,4021.9,4021.8,0.4473]
[1758981679164,1.7094697,4021.9,4021.8,0.4473]
[1758981679784,0.3138,4021.4,4020.9,1.34189161]
[1758981679989,0.3138,4020.9,4020.8,3.2078]
[1758981680283,1.20512,4020.7,4020.6,0.3089]
[1758981680478,3.49412761,4020.7,4020.6,0.3089]
[1758981680676,3.49412761,4020.7,4020.6,0.75634]
[1758981680882,3.04670761,4020.7,4020.6,0.75634]
[1758981681679,0.9483797,4020.7,4020.6,1.18474]
[1758981683085,0.7258797,4020.7,4020.6,1.18474]
[1758981683477,1.2380797,4020.7,4020.6,1.18474]
[1758981684476,0.9311797,4020.7,4020.6,1.18474]
[1758981687087,0.4267,4020.7,4020.6,1.18474]
[1758981691578,0.7336,4020.7,4020.6,1.18474]
[1758981692184,0.4267,4020.7,4020.6,1.18474]
[1758981693792,1.18102,4020.7,4020.6,0.97234]
[1758981693990,0.5256,4020.6,4020.5,0.78525]
[1758981694288,0.7309,4020.6,4020.5,0.78525]
[1758981695487,0.7309,4020.6,4020.5,1.00265]
[1758981696589,0.7309,4020.6,4020.5,1.12805]
[1758981697089,0.424,4020.6,4020.5,1.34255]
[1758981697284,0.2187,4020.6,4020.5,1.34255]
[1758981697478,1.78452791,4020.7,4020.6,0.87934]
[1758981697683,2.28791647,4020.7,4020.6,1.21714]
[1758981697890,2.50661647,4020.7,4020.6,1.21714]
[1758981698189,2.71191647,4020.7,4020.6,1.21714]
[1758981699591,3.01881647,4020.7,4020.6,1.21714]
[1758981703494,3.01881647,4020.7,4020.6,1.00264]
[1758981707695,0.72208856,4020.7,4020.6,1.21714]
[1758981707898,0.50338856,4020.7,4020.6,1.21714]
[1758981710889,0.72208856,4020.7,4020.6,1.21714]
[1758981712092,0.50338856,4020.7,4020.6,1.21714]
[1758981714402,0.72678856,4020.7,4020.6,1.21714]
[1758981723302,0.50338856,4020.7,4020.6,1.21714]
[1758981723508,0.50338856,4020.7,4020.6,1.46614]
[1758981730210,0.50338856,4020.7,4020.6,2.89901395]
[1758981730510,0.50338856,4020.7,4020.6,7.89901395]
[1758981735114,0.50338856,4020.7,4020.6,6.46614]
[1758981735506,5.08297395,4021.1,4021.0,1.03269]
[1758981735817,5.5881162,4021.1,4021.0,1.59789]
[1758981737818,5.9117162,4021.1,4021.0,1.59789]
[1758981742622,5.9117162,4021.1,4021.0,1.01259]
[1758981743320,5.9117162,4021.1,4021.0,1.23849]
[1758981743914,5.9117162,4021.1,4021.0,1.36309]
[1758981746621,5.9117162,4021.1,4021.0,1.57469]
[1758981747522,5.9117162,4021.1,4021.0,1.32569]
[1758981748123,5.9117162,4021.1,4021.0,0.44739]
[1758981749819,0.4928,4021.0,4020.9,0.4474]
[1758981750125,2.7543162,4021.0,4020.9,0.4474]
[1758981750326,3.0033162,4021.0,4020.9,0.4474]
[1758981752015,0.4174,4020.4,4020.3,3.42770609]
[1758981752220,1.24604225,4020.4,4020.3,4.12417609]
[1758981752421,0.92254225,4020.4,4020.3,4.33577609]
[1758981752626,0.92254225,4020.4,4020.3,4.65097609]
[1758981754721,0.70954225,4020.4,4020.3,4.65097609]
[1758981757832,0.92254225,4020.4,4020.3,4.40197609]
[1758981758034,1.24604225,4020.4,4020.3,4.65097609]
[1758981758639,1.24604225,4020.4,4020.3,4.19037609]
[1758981758936,1.69350225,4020.4,4020.3,3.20990609]
[1758981760229,1.69350225,4020.4,4020.3,3.52510609]
[1758981760839,1.69350225,4020.4,4020.3,3.65737609]
[1758981761836,1.24604225,4020.4,4020.3,3.65737609]
[1758981762026,1.24604225,4020.4,4020.3,3.97257609]
[1758981762223,1.69350225,4020.4,4020.3,3.65737609]
[1758981762426,1.69350225,4020.4,4020.3,0.44957609]
[1758981762624,11.36250225,4020.4,4020.3,0.44957609]
[1758981763646,16.36250225,4020.4,4020.3,0.44957609]
[1758981764133,16.36250225,4020.4,4020.3,0.00210609]
[1758981765133,16.36250225,4020.4,4020.3,0.44957609]
[1758981766129,16.36250225,4020.4,4020.3,0.00210609]
[1758981768641,17.7953762,4020.4,4020.3,0.00210609]
[1758981769839,12.7953762,4020.4,4020.3,0.00210609]
[1758981770341,17.7953762,4020.4,4020.3,0.00210609]
[1758981771341,1.18841,4019.9,4019.8,0.3152]
[1758981771642,6.5832262,4019.9,4019.8,0.3152]
[1758981771832,6.5832262,4019.9,4019.8,0.76272]
[1758981772333,6.58627617,4019.9,4019.8,0.31721116]
[1758981772534,6.58627617,4019.9,4019.8,0.76473116]
[1758981772734,6.13876617,4019.9,4019.8,1.19413116]
[1758981772943,5.81526617,4019.9,4019.8,1.19413116]
[1758981773538,6.13016617,4019.9,4019.8,1.19413116]
[1758981773932,5.35326617,4019.9,4019.8,1.19413116]
[1758981774139,5.60226617,4019.9,4019.8,1.19413116]
[1758981776648,4.37729222,4019.9,4019.8,1.19413116]
[1758981776849,4.69219222,4019.9,4019.8,1.19413116]
[1758981777752,4.44319222,4019.9,4019.8,1.19413116]
[1758981777951,4.69219222,4019.9,4019.8,1.19413116]
[1758981779649,4.37729222,4019.9,4019.8,1.19413116]
[1758981780345,4.69219222,4019.9,4019.8,1.19413116]
[1758981782244,4.69219222,4019.9,4019.8,0.98253116]
[1758981783344,4.69219222,4019.9,4019.8,0.44953116]
[1758981783649,4.69219222,4019.9,4019.8,0.97593116]
[1758981785452,5.13970222,4019.9,4019.8,0.44953116]
[1758981786041,4.12829222,4019.9,4019.8,1.18753116]
[1758981786251,4.44319222,4019.9,4019.8,1.18753116]
[1758981786459,4.37729222,4019.9,4019.8,1.18753116]
[1758981786663,4.69219222,4019.9,4019.8,0.97593116]
[1758981786850,4.69219222,4019.9,4019.8,1.18753116]
[1758981787055,4.37729222,4019.9,4019.8,1.18753116]
[1758981787358,3.92039222,4019.9,4019.8,1.18753116]
[1758981787555,3.71599222,4019.9,4019.8,1.18753116]
[1758981788053,0.50819222,4019.9,4019.8,6.18753116]
[1758981788252,3.2078,4020.5,4020.4,0.87426]
[1758981788452,3.2078,4020.5,4020.4,1.18116]
[1758981789260,3.20970437,4020.5,4020.4,1.18116]
[1758981790061,3.41420437,4020.5,4020.4,1.18116]
[1758981791557,3.20970437,4020.5,4020.4,1.18116]
[1758981793062,3.2078,4021.5,4021.4,1.18105]
[1758981793361,3.4123,4021.5,4021.4,1.18105]
[1758981793760,3.6298,4021.5,4021.4,1.18105]
[1758981793962,3.21067459,4021.5,4021.4,1.18105]
[1758981794160,0.00287459,4021.5,4021.4,6.18105]
[1758981797569,0.74847459,4021.5,4021.4,1.18105]
[1758981797866,0.74847459,4021.5,4021.4,1.20915]
[1758981798168,0.74847459,4021.5,4021.4,1.43005]
[1758981798863,0.42487459,4021.5,4021.4,1.43005]
[1758981799169,0.20737459,4021.5,4021.4,1.43005]
[1758981801066,0.74847459,4021.5,4021.4,1.18105]
[1758981801270,0.74847459,4021.5,4021.4,0.96015]
[1758981803070,0.74847459,4021.5,4021.4,1.18105]
[1758981806574,0.42487459,4021.5,4021.4,1.18105]
[1758981808874,0.74847459,4021.5,4021.4,0.75425]
[1758981809178,4.45695773,4021.5,4021.4,0.75425]
[1758981809678,4.90429773,4021.5,4021.4,0.75425]
[1758981810882,4.90429773,4021.5,4020.6,0.3299]
[1758981810883,1.19542,4020.7,4020.6,0.3299]
[1758981811080,1.19542,4020.7,4020.4,0.44746]
[1758981811081,0.4244,4020.5,4020.4,0.44746]
[1758981811379,1.19545,4020.5,4020.4,0.77736]
[1758981811581,1.19545,4020.5,4020.4,0.99266]
[1758981812170,1.69633815,4020.5,4020.4,0.99266]
[1758981812671,1.69633815,4020.5,4020.4,0.5452]
[1758981813481,1.69633815,4020.5,4019.7,1.11884]
[1758981813482,0.748,4019.9,4019.8,0.66482116]
[1758981813677,2.53440839,4019.9,4019.8,0.66482116]
[1758981813877,2.53440839,4019.9,4019.8,0.00201116]
[1758981813878,2.98191839,4019.9,4019.8,0.00201116]
[1758981814376,2.98191839,4019.9,4019.8,0.33191116]
[1758981814573,2.53440839,4019.9,4019.8,0.77943116]
[1758981814775,3.48281339,4019.9,4019.8,0.77943116]
[1758981814975,3.48281339,4019.9,4019.8,0.33191116]
[1758981815980,3.48281339,4019.9,4019.8,0.00201116]
[1758981816379,3.48281339,4019.9,4019.8,0.33191116]
[1758981817483,12.70281339,4019.9,4019.8,0.00201116]
[1758981819274,17.70281339,4019.9,4019.8,0.00201116]
[1758981819480,12.70281339,4019.9,4019.8,0.00201116]
[1758981820576,12.70281339,4019.9,4019.8,0.33191116]
[1758981821373,12.70281339,4019.9,4019.8,0.77943116]
[1758981821580,12.70281339,4019.9,4019.8,0.00201116]
[1758981826485,12.70281339,4019.9,4019.8,0.44953116]
[1758981826983,12.70281339,4019.9,4019.8,0.00201116]
[1758981827186,12.70281339,4019.9,4019.8,0.44953116]
[1758981827779,12.70281339,4019.9,4019.8,0.77943116]
[1758981828179,12.70281339,4019.9,4019.8,0.44953116]
[1758981828787,15.91061339,4019.9,4019.8,0.44953116]
[1758981830084,0.44759,4019.3,4019.0,0.3299]
[1758981830285,2.98200839,4019.1,4019.0,0.3299]
[1758981830484,2.98200839,4019.1,4019.0,0.77751]
[1758981830683,2.53440839,4019.1,4019.0,0.99281]
[1758981830878,2.53440839,4019.1,4019.0,1.11951]
[1758981831282,2.53440839,4019.1,4019.0,1.1219895]
[1758981832083,2.53440839,4019.1,4019.0,0.4500895]
[1758981832386,2.98200839,4019.1,4019.0,0.3323795]
[1758981832577,0.748,4019.1,4019.0,0.7799895]
[1758981832779,1.99340839,4019.1,4019.0,1.3274895]
[1758981833185,2.44100839,4019.1,4019.0,1.3274895]
[1758981834088,2.64730839,4019.1,4019.0,1.3274895]
[1758981834287,2.19970839,4019.1,4019.0,1.3274895]
[1758981834690,2.64730839,4019.1,4019.0,1.3274895]
[1758981836089,3.14665852,4019.1,4019.0,1.3274895]
[1758981836590,2.79453296,4019.1,4019.0,1.3274895]
[1758981839695,3.11833296,4019.1,4019.0,0.3323795]
[1758981840694,3.11833296,4019.1,4019.0,0.0024795]
[1758981841591,18.00833296,4019.1,4019.0,0.0024795]
[1758981842590,6.55833296,4019.1,4019.0,0.6602795]
[1758981842785,6.55833296,4019.1,4019.0,1.1078895]
[1758981842982,6.23453296,4019.1,4019.0,1.3135895]
[1758981843502,6.55833296,4019.1,4019.0,1.3135895]
[1758981843694,1.93363296,4019.1,4019.0,1.3135895]
[1758981845997,2.35253296,4019.1,4019.0,1.3135895]
[1758981846500,3.12393296,4019.1,4019.0,1.3135895]
[1758981846697,3.12393296,4019.1,4019.0,0.8659795]
[1758981847199,3.37393296,4019.1,4019.0,0.6602795]
[1758981847400,3.37393296,4019.1,4019.0,1.1078895]
[1758981848294,3.37393296,4019.1,4019.0,0.6602795]
[1758981848497,11.68393296,4019.1,4019.0,0.0024795]
[1758981849605,16.68393296,4019.1,4019.0,0.0024795]
[1758981851798,2.94965013,4019.1,4019.0,0.5186795]
[1758981852098,4.63393296,4019.1,4019.0,0.5186795]
[1758981852403,4.63393296,4019.1,4019.0,0.0024795]
[1758981853608,10.53393296,4019.1,4019.0,0.0024795]
[1758981854397,9.83633296,4019.1,4019.0,0.5186795]
[1758981854602,0.49935013,4019.1,4019.0,1.3172895]
[1758981854902,1.90028283,4019.2,4019.1,1.1819]
[1758981856205,2.34787283,4019.2,4019.1,1.1819]
[1758981856605,1.90028283,4019.2,4019.1,1.1819]
[1758981857407,1.65028283,4019.2,4019.1,1.1819]
[1758981857607,1.68428283,4019.2,4019.1,1.1819]
[1758981858104,2.13187283,4019.2,4019.1,1.1819]
[1758981858301,2.34787283,4019.2,4019.1,0.7343]
[1758981858501,1.1995,4019.1,4019.0,0.0024795]
[1758981858711,9.9795,4019.1,4019.0,0.0024795]
[1758981864215,1.19376,4018.6,4018.5,0.3068]
[1758981864507,4.65156,4018.6,4018.5,0.3068]
[1758981865102,4.65341747,4018.6,4018.5,0.30892991]